fUSD/lending_fUSD_20260224
["ID","MTS","AMOUNT","RATE_DAILY","PERIOD"]
[406531803,1771919445426,-1000.0,0.00017631,2]
[406531804,1771919445435,-1279.27657175,0.0001764,2]
[406531805,1771919445444,-4010.75014524,0.00017708,2]
[406531806,1771919445453,-327.0,0.00017747,2]
[406531807,1771919445462,-482.622583,0.00017767,2]
[406531808,1771919445471,-327.0,0.00017772,2]
[406531809,1771919445480,-801.05908882,0.00017808,2]
[406531810,1771919445489,-327.0,0.00017815,2]
[406531811,1771919445498,-173.87087054,0.000179,3]
[406531812,1771919445507,-25000.0,0.000179,3]
[406531813,1771919445516,-325.47414116,0.000179,2]
[406531814,1771919445526,-715.36954496,0.000179,2]
[406531815,1771919445535,-684.76593066,0.000179,2]
[406531816,1771919445544,-327.0,0.00017939,2]
[406531817,1771919445553,-891.61887448,0.00017965,2]
[406531818,1771919445562,-1718.0,0.00017971,2]
[406531819,1771919445571,-150.0,0.00017974,2]
[406531820,1771919445580,-327.0,0.00017978,2]
[406531821,1771919445590,-574.86865068,0.00017999,2]
[406531822,1771919445599,-500.0,0.00017999,2]
[406531823,1771919445609,-500.0,0.00017999,2]
[406531824,1771919445618,-500.0,0.00017999,2]
[406531825,1771919445627,-500.0,0.00017999,2]
[406531826,1771919445637,-500.0,0.00017999,2]
[406531827,1771919445646,-500.0,0.00017999,2]
[406531828,1771919445656,-505.31040762,0.00017999,2]
[406531829,1771919445665,-500.0,0.00017999,2]
[406531830,1771919445674,-500.0,0.00017999,2]
[406531831,1771919445683,-500.0,0.00017999,2]
[406531832,1771919445691,-500.0,0.00017999,2]
[406531833,1771919445700,-500.0,0.00017999,2]
[406531834,1771919445709,-500.0,0.00017999,2]
[406531835,1771919445718,-500.0,0.00017999,2]
[406531836,1771919445726,-500.0,0.00017999,2]
[406531837,1771919445735,-500.0,0.00017999,2]
[406531838,1771919445744,-500.0,0.00017999,2]
[406531839,1771919445753,-500.0,0.00017999,2]
[406531840,1771919445762,-500.0,0.00017999,2]
[406531841,1771919445770,-174.85786729,0.00017999,2]
[406531842,1771919445779,-500.0,0.00017999,2]
[406531843,1771919445788,-500.0,0.00017999,2]
[406531844,1771919445796,-500.0,0.00017999,2]
[406531845,1771919445805,-500.0,0.00017999,2]
[406531846,1771919445814,-500.0,0.00017999,2]
[406531847,1771919445823,-301.79248677,0.00017999,2]
[406531848,1771919445832,-500.0,0.00017999,2]
[406531849,1771919445840,-500.0,0.00017999,2]
[406531850,1771919445850,-500.0,0.00017999,2]
[406531851,1771919445858,-500.0,0.00017999,2]
[406531852,1771919445867,-500.0,0.00017999,2]
[406531853,1771919445876,-500.0,0.00017999,2]
[406531854,1771919445885,-500.0,0.00017999,2]
[406531855,1771919445895,-500.0,0.00017999,2]
[406531856,1771919445904,-500.0,0.00017999,2]
[406531858,1771919445912,-500.0,0.00017999,2]
[406531859,1771919445921,-500.0,0.00017999,2]
[406531860,1771919445931,-500.0,0.00017999,2]
[406531861,1771919445939,-500.0,0.00017999,2]
[406531862,1771919445949,-500.0,0.00017999,2]
[406531863,1771919445958,-501.77257617,0.00017999,2]
[406531864,1771919446141,-500.0,0.00017999,2]
[406531865,1771919446151,-500.0,0.00017999,2]
[406531866,1771919446160,-500.0,0.00017999,2]
[406531867,1771919446169,-155.12855329,0.00017999,2]
[406531868,1771919446181,-500.0,0.00017999,2]
[406531869,1771919446190,-500.0,0.00017999,2]
[406531870,1771919446199,-500.0,0.00017999,2]
[406531871,1771919446208,-594.51155404,0.00017999,2]
[406531872,1771919446218,-500.0,0.00017999,2]
[406531873,1771919446227,-500.0,0.00017999,2]
[406531874,1771919446236,-500.0,0.00017999,2]
[406531875,1771919446247,-500.0,0.00017999,2]
[406531876,1771919446256,-500.0,0.00017999,2]
[406531877,1771919446266,-500.0,0.00017999,2]
[406531878,1771919446275,-500.0,0.00017999,2]
[406531879,1771919446284,-500.0,0.00017999,2]
[406531880,1771919446292,-500.0,0.00017999,2]
[406531881,1771919446301,-500.0,0.00017999,2]
[406531882,1771919446310,-500.0,0.00017999,2]
[406531883,1771919446319,-500.0,0.00017999,2]
[406531885,1771919446328,-500.0,0.00017999,2]
[406531886,1771919446337,-500.0,0.00017999,2]
[406531887,1771919446346,-500.0,0.00017999,2]
[406531888,1771919446355,-150.0,0.00017999,2]
[406531889,1771919446364,-210.94677836,0.00017999,2]
[406531890,1771919446373,-198384.27150302,0.00018,2]
[406531891,1771919446383,-1989387.12743024,0.00018,2]
[406531892,1771919446630,-1690.93435591,0.00018,2]
[406531893,1771919446641,-13390.316375,0.00018,2]
[406531894,1771919446652,-262.632924,0.00018,2]
[406531895,1771919446663,-631.4872482,0.00018,2]
[406531896,1771919474605,269.29,0.000114,2]
[406531897,1771919492614,1112.23974159,0.00011249,2]
[406531898,1771919492637,515.06725841,0.00011249,2]
[406531899,1771919492681,179.794,0.00011249,2]
[406531900,1771919503566,-333.25570694,0.00011478,2]
[406531901,1771919503601,-500.0,0.00011478,2]
[406531902,1771919503635,-500.0,0.00011478,2]
[406531903,1771919503668,-500.0,0.00011478,2]
[406531904,1771919503701,-500.0,0.00011478,2]
[406531905,1771919503737,-500.0,0.00011478,2]
[406531906,1771919503772,-500.0,0.00011478,2]
[406531907,1771919503807,-500.0,0.00011478,2]
[406531908,1771919503842,-500.0,0.00011478,2]
[406531909,1771919503880,-500.0,0.00011478,2]
[406531910,1771919504822,-500.0,0.00011478,2]
[406531911,1771919504859,-496.04439159,0.00011478,2]
[406531912,1771919504899,-500.0,0.00011478,2]
[406531913,1771919504935,-500.0,0.00011478,2]
[406531914,1771919504971,-500.0,0.00011478,2]
[406531915,1771919505008,-500.0,0.00011478,2]
[406531916,1771919505042,-500.0,0.00011478,2]
[406531917,1771919505077,-500.0,0.00011478,2]
[406531918,1771919505113,-500.0,0.00011478,2]
[406531919,1771919505149,-500.0,0.00011478,2]
[406531920,1771919505306,-500.0,0.00011478,2]
[406531921,1771919505340,-500.0,0.00011478,2]
[406531922,1771919505374,-500.0,0.00011478,2]
[406531923,1771919505407,-500.0,0.00011478,2]
[406531924,1771919505441,-155.03684784,0.00011478,2]
[406531925,1771919505470,-500.0,0.00011478,2]
[406531926,1771919505500,-482.00453945,0.00011478,2]
[406531927,1771919505528,-500.0,0.00011478,2]
[406531928,1771919505557,-150.0,0.00011478,2]
[406531929,1771919512400,500.0,0.00011478,2]
[406531930,1771919512449,234.2569707,0.00011478,2]
[406531931,1771919514835,1691.67025472,0.00011434,2]
[406531932,1771919514858,10000.01,0.00011434,2]
[406531933,1771919514881,9890.83174468,0.00011434,2]
[406531934,1771919521467,300.0,0.00011478,2]
[406531935,1771919528132,707.24942448,0.00011379,2]
[406531936,1771919543322,500.0,0.000108,2]
[406531937,1771919543827,500.0,0.000108,2]
[406531938,1771919544334,500.0,0.000108,2]
[406531939,1771919544536,500.0,0.000108,2]
[406531940,1771919544824,500.0,0.000108,2]
[406531941,1771919548932,500.0,0.000108,2]
[406531942,1771919549076,456.51062044,0.00011407,2]
[406531943,1771919549655,500.0,0.000108,2]
[406531944,1771919550130,500.0,0.000108,2]
[406531945,1771919550706,500.0,0.000108,2]
[406531946,1771919551179,500.0,0.000108,2]
[406531947,1771919553466,500.0,0.000108,2]
[406531948,1771919553885,500.0,0.000108,2]
[406531949,1771919554353,500.0,0.000108,2]
[406531950,1771919554802,500.0,0.000108,2]
[406531951,1771919555281,500.0,0.000108,2]
[406531952,1771919555743,500.0,0.000108,2]
[406531953,1771919556229,500.0,0.000108,2]
[406531954,1771919567060,36.24995508,0.00011407,2]
[406531955,1771919567084,1412.18253866,0.00011407,2]
[406531956,1771919576327,500.0,0.00011478,2]
[406531957,1771919576374,179.74417144,0.00011478,2]
[406531958,1771919580157,500.0,0.00011478,2]
[406531959,1771919580217,500.0,0.00011478,2]
[406531960,1771919580284,500.0,0.00011478,2]
[406531961,1771919580322,500.0,0.00011478,2]
[406531962,1771919580379,500.0,0.00011478,2]
[406531963,1771919580435,500.0,0.00011478,2]
[406531964,1771919580497,500.0,0.00011478,2]
[406531965,1771919580548,634.88573477,0.00011478,2]
[406531966,1771919580606,500.0,0.00011478,2]
[406531967,1771919586229,1262.31524685,0.00011379,2]
[406531968,1771919588675,500.0,0.00011378,2]
[406531969,1771919594983,9500.01,0.00011379,2]
[406531970,1771919595006,10000.01,0.00011379,2]
[406531971,1771919595028,10000.01,0.00011379,2]
[406531972,1771919595051,2340.3069,0.00011379,2]
[406531973,1771919599449,833.62786045,0.00011407,2]
[406531974,1771919600856,183.0566,0.00011379,2]
[406531975,1771919601271,6643.01863955,0.00011407,2]
[406531976,1771919601295,1475.01730836,0.00011407,2]
[406531977,1771919604827,189.70290032,0.00011478,2]
[406531979,1771919625702,500.0,0.00011478,2]
[406531980,1771919625786,234.2569707,0.00011478,2]
[406531982,1771919631018,3164.81,0.00011233,2]
[406531983,1771919631481,1000.0,0.00011379,2]
[406531984,1771919635877,628.24668109,0.00011478,2]
[406531985,1771919636003,2807.97613953,0.00011379,2]
[406531986,1771919636029,6845.53185095,0.00011379,2]
[406531987,1771919641504,300.0,0.00011478,2]
[406531988,1771919642124,150.0,0.00011478,2]
[406531989,1771919657152,500.0,0.00011478,2]
[406531990,1771919657206,500.0,0.00011478,2]
[406531991,1771919657257,453.23638492,0.00011478,2]
[406531992,1771919679603,725.22499884,0.00011393,2]
[406531993,1771919687312,526.01676529,0.00011393,2]
[406531994,1771919687337,439.60489721,0.00011393,2]
[406531995,1771919701556,300.0,0.00011478,2]
[406531996,1771919701587,1200.0,0.00011478,2]
[406531997,1771919701621,300.0,0.00011478,2]
[406531998,1771919701655,300.0,0.00011478,2]
[406531999,1771919710655,290.97409479,0.00011393,2]
[406532002,1771919770369,7169.431008,0.00011379,2]
[406532003,1771919770396,10000.01,0.00011379,2]
[406532004,1771919770425,10000.01,0.00011379,2]
[406532005,1771919770450,10000.01,0.00011379,2]
[406532006,1771919770476,10000.01,0.00011379,2]
[406532007,1771919770500,10000.01,0.00011379,2]
[406532008,1771919770525,10000.01,0.00011379,2]
[406532009,1771919770549,10000.01,0.00011379,2]
[406532010,1771919770573,10000.01,0.00011379,2]
[406532011,1771919787251,-5079.08787869,0.00011379,2]
[406532012,1771919787353,-10000.01,0.00011379,2]
[406532013,1771919787484,-10000.01,0.00011379,2]
[406532014,1771919787610,-10000.01,0.00011379,2]
[406532015,1771919787731,-10000.01,0.00011379,2]
[406532016,1771919787851,-10000.01,0.00011379,2]
[406532017,1771919787973,-10000.01,0.00011379,2]
[406532018,1771919788107,-10000.01,0.00011379,2]
[406532019,1771919793367,-10000.01,0.00011379,2]
[406532020,1771919793694,-10000.01,0.00011379,2]
[406532021,1771919793801,-10000.01,0.00011379,2]
[406532022,1771919793910,-10000.01,0.00011379,2]
[406532023,1771919794044,-10000.01,0.00011379,2]
[406532024,1771919794166,-10000.01,0.00011379,2]
[406532025,1771919800574,-10000.01,0.00011379,2]
[406532026,1771919800692,-10000.01,0.00011379,2]
[406532027,1771919800815,-10000.01,0.00011379,2]
[406532028,1771919800925,-10000.01,0.00011379,2]
[406532029,1771919801075,-10000.01,0.00011379,2]
[406532030,1771919801188,-10000.01,0.00011379,2]
[406532032,1771919827853,5000.01,7.945e-05,2]
[406532033,1771919827874,5000.01,7.945e-05,2]
[406532034,1771919827895,5000.01,7.945e-05,2]
[406532035,1771919827916,5000.01,7.945e-05,2]
[406532036,1771919827937,416.582158,7.945e-05,2]
[406532038,1771919867494,208.0,0.00010692,2]
[406532039,1771919873600,6253.13430766,0.000107,2]
[406532040,1771919891688,1500.0,0.00010613,2]
[406532041,1771919909622,1200.208243,0.00010744,2]
[406532042,1771919939872,-300.0,0.00010799,2]
[406532043,1771919939899,-501.06724534,0.000108,2]
[406532044,1771919939927,-500.0,0.000108,2]
[406532045,1771919939954,-500.0,0.000108,2]
[406532046,1771919939982,-500.0,0.000108,2]
[406532047,1771919940009,-500.0,0.000108,2]
[406532048,1771919940037,-500.0,0.000108,2]
[406532049,1771919940064,-500.0,0.000108,2]
[406532050,1771919940091,-500.0,0.000108,2]
[406532051,1771919940118,-500.0,0.000108,2]
[406532052,1771919940146,-500.0,0.000108,2]
[406532053,1771919940173,-500.0,0.000108,2]
[406532054,1771919940202,-500.0,0.000108,2]
[406532055,1771919940230,-500.0,0.000108,2]
[406532056,1771919940259,-500.0,0.000108,2]
[406532057,1771919940287,-500.0,0.000108,2]
[406532058,1771919940319,-842.19338725,0.000108,2]
[406532059,1771919940347,-500.0,0.000108,2]
[406532060,1771919940375,-500.0,0.000108,2]
[406532061,1771919940402,-213.47873482,0.000108,2]
[406532062,1771919958418,-286.52126518,0.000108,2]
[406532063,1771919958446,-619.49571842,0.000108,2]
[406532064,1771919958477,-789.45931659,0.000108,2]
[406532065,1771919958506,-500.0,0.000108,2]
[406532066,1771919958533,-500.0,0.000108,2]
[406532067,1771919958571,-500.0,0.000108,2]
[406532068,1771919958603,-500.0,0.000108,2]
[406532069,1771919958631,-500.0,0.000108,2]
[406532070,1771919958658,-500.0,0.000108,2]
[406532071,1771919958687,-500.0,0.000108,2]
[406532072,1771919958713,-502.76700379,0.000108,2]
[406532073,1771919958742,-500.0,0.000108,2]
[406532074,1771919958771,-500.0,0.000108,2]
[406532075,1771919958799,-500.0,0.000108,2]
[406532076,1771919958828,-500.0,0.000108,2]
[406532077,1771919958861,-500.0,0.000108,2]
[406532078,1771919958890,-500.0,0.000108,2]
[406532079,1771919958919,-500.0,0.000108,2]
[406532080,1771919958947,-500.0,0.000108,2]
[406532081,1771919958974,-103.51339204,0.000108,2]
[406532086,1771920050499,-300.0,0.00010799,2]
[406532087,1771920050527,-1200.0,0.00010799,2]
[406532088,1771920050554,-300.0,0.00010799,2]
[406532089,1771920050580,-150.0,0.00010799,2]
[406532090,1771920050606,-238.0,0.00010799,2]
[406532091,1771920050632,-171.0,0.00010799,2]
[406532092,1771920050660,-396.48660796,0.000108,2]
[406532093,1771920050689,-718.56835123,0.000108,2]
[406532094,1771920050719,-500.0,0.000108,2]
[406532095,1771920050747,-615.5072787,0.000108,2]
[406532096,1771920050774,-500.0,0.000108,2]
[406532097,1771920050801,-500.0,0.000108,2]
[406532098,1771920050829,-507.70307174,0.000108,2]
[406532099,1771920050862,-500.0,0.000108,2]
[406532100,1771920050895,-500.0,0.000108,2]
[406532101,1771920050921,-500.0,0.000108,2]
[406532102,1771920050950,-500.0,0.000108,2]
[406532103,1771920050978,-500.0,0.000108,2]
[406532104,1771920051006,-585.91467153,0.000108,2]
[406532105,1771920051034,-500.0,0.000108,2]
[406532106,1771920051062,-133.64003768,0.000108,2]
[406532108,1771920117351,2299.801757,0.00010744,2]
[406532109,1771920117375,3380.804836,0.00010744,2]
[406532110,1771920134300,-300.0,0.00010799,2]
[406532111,1771920134326,-366.35996232,0.000108,2]
[406532112,1771920134353,-500.0,0.000108,2]
[406532113,1771920134382,-500.0,0.000108,2]
[406532114,1771920134409,-500.0,0.000108,2]
[406532115,1771920134437,-500.0,0.000108,2]
[406532116,1771920134465,-500.0,0.000108,2]
[406532117,1771920134493,-500.0,0.000108,2]
[406532118,1771920134520,-500.0,0.000108,2]
[406532119,1771920134548,-500.0,0.000108,2]
[406532120,1771920134575,-500.0,0.000108,2]
[406532121,1771920134601,-993.25770071,0.000108,2]
[406532122,1771920134628,-286.72600759,0.00010854,2]
[406532123,1771920134655,-287.0127336,0.00010854,2]
[406532124,1771920134682,-183.540127,0.00010918,2]
[406532126,1771920209937,-150.0,0.00010799,2]
[406532127,1771920209966,-300.0,0.00010799,2]
[406532128,1771920209999,-250.0,0.000108,2]
[406532129,1771920210028,-520.58177915,0.000108,2]
[406532130,1771920210058,-500.0,0.000108,2]
[406532132,1771920210092,-500.0,0.000108,2]
[406532133,1771920210122,-500.0,0.000108,2]
[406532134,1771920210155,-500.0,0.000108,2]
[406532135,1771920210183,-500.0,0.000108,2]
[406532136,1771920210212,-500.0,0.000108,2]
[406532137,1771920210242,-500.0,0.000108,2]
[406532138,1771920210274,-500.0,0.000108,2]
[406532139,1771920210307,-500.0,0.000108,2]
[406532140,1771920210362,-801.52125794,0.000108,2]
[406532141,1771920210392,-500.0,0.000108,2]
[406532142,1771920210420,-500.0,0.000108,2]
[406532143,1771920210447,-572.33914268,0.000108,2]
[406532144,1771920210475,-328.17969267,0.00010854,2]
[406532145,1771920210776,-2869.2637828,0.00010941,2]
[406532146,1771920237232,-3752.0562172,0.00010941,2]
[406532147,1771920295910,-396.55837091,0.00011109,2]
[406532148,1771920295934,-1322.28986838,0.00011109,2]
[406532149,1771920295958,-300.0,0.00011159,2]
[406532150,1771920295981,-194.14128301,0.0001116,2]
[406532151,1771920296006,-4488.3761177,0.0001116,2]
[406532152,1771920296031,-1121.1535674,0.0001116,2]
[406532153,1771920296056,-337.44866544,0.0001116,2]
[406532154,1771920296090,-300.0,0.00011169,2]
[406532155,1771920296118,-1498.39093628,0.00011177,2]
[406532156,1771920296143,-165.56897386,0.00011177,2]
[406532157,1771920296169,-166.72118877,0.00011177,2]
[406532158,1771920296199,-87509.35102825,0.00011178,2]
[406532479,1771920452669,1600.0,0.00010548,2]
[406532480,1771920484499,1792.648877,0.00011022,2]
[406532481,1771920496908,5530.0,0.00012,3]
[406532482,1771920558663,5531.0,0.00012,5]
[406532483,1771920602244,558.18,8.9e-05,2]
[406532485,1771920616921,171.869699,0.00010613,2]
[406532495,1771920632165,-300.0,0.00011078,2]
[406532496,1771920632175,-300.0,0.00011078,2]
[406532497,1771920632184,-220.54991355,0.00011078,2]
[406532498,1771920632196,-979.45008645,0.00011078,2]
[406532499,1771920632205,-300.0,0.00011078,2]
[406532500,1771920632215,-300.0,0.00011078,2]
[406532501,1771920632223,-27.27718513,0.00011078,2]
[406532502,1771920632235,-222.72281487,0.00011078,2]
[406532503,1771920632244,-2500.0,0.00011078,2]
[406532504,1771920632253,-900.60016508,0.00011079,2]
[406532505,1771920632264,-1998.50742485,0.00011079,2]
[406532506,1771920632275,-1028.22151304,0.00011079,2]
[406532507,1771920632284,-3130.40575592,0.00011079,2]
[406532508,1771920632295,-927.69623708,0.00011079,2]
[406532509,1771920632306,-748.00966555,0.00011079,2]
[406532510,1771920632321,-4773.53974525,0.00011079,2]
[406532511,1771920632330,-747.4357116,0.00011079,2]
[406532512,1771920632339,-376.58367335,0.00011082,2]
[406532513,1771920632349,-8048.20992996,0.00011099,2]
[406532514,1771920632360,-21728.48894532,0.00011099,2]
[406532515,1771920632369,-290.83406778,0.00011107,2]
[406532516,1771920632379,-150.0,0.00011108,2]
[406532517,1771920632388,-278.97783528,0.00011109,2]
[406532518,1771920632398,-26657.44874387,0.00011109,2]
[406532519,1771920632407,-583118.1413791,0.00011112,2]
[406532520,1771920632417,-38069.47566257,0.00011162,2]
[406532521,1771920632426,-774.32438509,0.00011168,2]
[406532522,1771920632436,-774.32438509,0.00011168,2]
[406532524,1771920632445,-151.0,0.00011171,2]
[406532525,1771920632454,-151.0,0.00011171,2]
[406532527,1771920632463,-151.0,0.00011171,2]
[406532528,1771920632472,-151.0,0.00011171,2]
[406532529,1771920632482,-151.0,0.00011171,2]
[406532530,1771920632495,-151.0,0.00011171,2]
[406532531,1771920632504,-151.0,0.00011171,2]
[406532532,1771920632514,-151.0,0.00011171,2]
[406532533,1771920632523,-151.0,0.00011171,2]
[406532534,1771920632533,-151.0,0.00011171,2]
[406532535,1771920632542,-151.0,0.00011171,2]
[406532536,1771920632552,-151.0,0.00011171,2]
[406532537,1771920632563,-151.0,0.00011171,2]
[406532538,1771920632572,-151.0,0.00011171,2]
[406532539,1771920632581,-151.0,0.00011171,2]
[406532540,1771920632590,-151.0,0.00011171,2]
[406532541,1771920632599,-151.0,0.00011171,2]
[406532542,1771920632608,-151.0,0.00011171,2]
[406532543,1771920632617,-151.0,0.00011171,2]
[406532544,1771920632627,-151.0,0.00011171,2]
[406532545,1771920632636,-200.0,0.00011171,2]
[406532546,1771920632645,-151.0,0.00011171,2]
[406532547,1771920632655,-151.0,0.00011171,2]
[406532548,1771920632664,-151.0,0.00011171,2]
[406532549,1771920632673,-151.0,0.00011171,2]
[406532550,1771920632682,-151.0,0.00011171,2]
[406532551,1771920632692,-151.0,0.00011171,2]
[406532552,1771920632702,-151.0,0.00011171,2]
[406532553,1771920632712,-151.0,0.00011171,2]
[406532554,1771920632722,-151.0,0.00011171,2]
[406532555,1771920632731,-151.0,0.00011171,2]
[406532556,1771920632740,-151.0,0.00011171,2]
[406532557,1771920632749,-500.0,0.00011171,2]
[406532558,1771920632758,-500.0,0.00011171,2]
[406532559,1771920632767,-500.0,0.00011171,2]
[406532560,1771920632776,-500.0,0.00011171,2]
[406532561,1771920632786,-500.0,0.00011171,2]
[406532562,1771920632795,-500.0,0.00011171,2]
[406532563,1771920632804,-465.6850275,0.00011171,2]
[406532564,1771920632814,-151.0,0.00011171,2]
[406532565,1771920632823,-151.0,0.00011171,2]
[406532566,1771920632832,-151.0,0.00011171,2]
[406532567,1771920632841,-151.0,0.00011171,2]
[406532568,1771920632850,-151.0,0.00011171,2]
[406532569,1771920632860,-151.0,0.00011171,2]
[406532570,1771920632869,-151.0,0.00011171,2]
[406532571,1771920632878,-151.0,0.00011171,2]
[406532572,1771920632887,-151.0,0.00011171,2]
[406532573,1771920632897,-151.0,0.00011171,2]
[406532574,1771920632906,-151.0,0.00011171,2]
[406532575,1771920632916,-151.0,0.00011171,2]
[406532576,1771920632925,-151.0,0.00011171,2]
[406532577,1771920632934,-151.0,0.00011171,2]
[406532578,1771920632944,-151.0,0.00011171,2]
[406532579,1771920632953,-151.0,0.00011171,2]
[406532580,1771920632963,-151.0,0.00011171,2]
[406532581,1771920632972,-151.0,0.00011171,2]
[406532582,1771920632982,-151.0,0.00011171,2]
[406532583,1771920632991,-151.0,0.00011171,2]
[406532584,1771920633001,-500.0,0.00011171,2]
[406532585,1771920633011,-523.2302062,0.00011171,2]
[406532586,1771920633020,-500.0,0.00011177,2]
[406532587,1771920633030,-501.28089735,0.00011177,2]
[406532588,1771920633040,-229.59645019,0.00011177,2]
[406532589,1771920633049,-500.0,0.00011177,2]
[406532590,1771920633058,-500.0,0.00011177,2]
[406532591,1771920633067,-349.07100071,0.00011177,2]
[406532592,1771920633077,-500.0,0.00011177,2]
[406532593,1771920633086,-500.0,0.00011177,2]
[406532594,1771920633096,-2657920.48959859,0.00011178,2]
[406532596,1771920633382,-842079.51040141,0.00011178,2]
[406532597,1771920633392,-1212.6617,0.00011179,2]
[406532598,1771920633401,-78330.797,0.00011179,2]
[406532599,1771920633411,-2606.0,0.0001126,2]
[406532600,1771920633419,-1302.0,0.0001126,2]
[406532601,1771920633428,-1817.055,0.00011269,2]
[406532602,1771920633437,-188.662,0.00011269,2]
[406532603,1771920633446,-347.97,0.00011269,2]
[406532604,1771920633455,-500.0,0.00011279,2]
[406532605,1771920633465,-19912.52,0.00011288,2]
[406532606,1771920633474,-14657.05,0.00011288,2]
[406532607,1771920633486,-9999.99,0.00011288,2]
[406532608,1771920633495,-9999.99,0.00011288,2]
[406532609,1771920633505,-150.99,0.00011288,2]
[406532610,1771920633514,-150.99,0.00011288,2]
[406532611,1771920633523,-9999.99,0.00011288,2]
[406532612,1771920633532,-1413.37,0.00011288,2]
[406532613,1771920633542,-9999.99,0.00011288,2]
[406532614,1771920633551,-9999.99,0.00011288,2]
[406532615,1771920633561,-9999.99,0.00011288,2]
[406532616,1771920633570,-516.03,0.00011288,2]
[406532617,1771920633579,-1185.85,0.00011288,2]
[406532618,1771920633588,-999.99,0.00011288,2]
[406532619,1771920633597,-306.28,0.00011288,2]
[406532620,1771920633606,-49999.99,0.00011288,2]
[406532621,1771920633615,-9999.99,0.00011288,2]
[406532622,1771920633624,-3838.62,0.00011368,2]
[406532623,1771920633633,-1000.0,0.00011379,2]
[406532624,1771920633642,-10000.0,0.00011379,2]
[406532625,1771920633652,-500.0,0.00011451,2]
[406532626,1771920633661,-1869.0,0.00011469,2]
[406532627,1771920633671,-161.0,0.00011469,2]
[406532628,1771920633680,-1000.0,0.00011477,2]
[406532629,1771920633689,-484.0,0.00011492,2]
[406532630,1771920633698,-1300.0,0.00011505,2]
[406532631,1771920633707,-312.0,0.00011515,2]
[406532632,1771920633716,-400.0,0.00011521,2]
[406532633,1771920633945,-375.0,0.00011538,2]
[406532634,1771920633955,-296.0,0.00011558,2]
[406532635,1771920633964,-381.0,0.0001156,2]
[406532636,1771920633973,-167.0,0.00011583,2]
[406532637,1771920633983,-1547.0,0.00011587,2]
[406532638,1771920633992,-288.0,0.00011606,2]
[406532639,1771920634001,-422.0,0.00011688,2]
[406532640,1771920634010,-481.0,0.00011709,2]
[406532641,1771920634019,-288.0,0.00011712,2]
[406532642,1771920634028,-200.0,0.00011719,2]
[406532643,1771920634037,-500.0,0.00011725,2]
[406532644,1771920634046,-195.0,0.00011735,2]
[406532645,1771920634055,-277.0,0.00011758,2]
[406532646,1771920634064,-29776.69887527,0.00011826,2]
[406532647,1771920634072,-26657.44874385,0.00011864,2]
[406532648,1771920634082,-1600.0,0.00011867,2]
[406532649,1771920634091,-1000.0,0.00011967,2]
[406532650,1771920634100,-383.401351,0.00011995,2]